bitfinex/quotes_ETHUSD_20250507
["timestamp","ask_amount","ask_price","bid_price","bid_amount"]
[1746581480738,15.31696881,1846.9,1846.7,0.11918742]
[1746581480944,15.31696881,1846.9,1846.5,5.41553895]
[1746581480945,2.07119688,1846.8,1846.5,5.41553895]
[1746581481257,2.07119688,1846.8,1846.6,0.11918742]
[1746581481461,0.30239008,1846.7,1846.6,5.53454537]
[1746581481971,0.30239008,1846.7,1846.6,6.36614537]
[1746581482139,0.70772296,1846.7,1846.6,6.36614537]
[1746581482341,0.40533288,1846.7,1846.6,5.53454537]
[1746581482590,0.30239008,1846.8,1846.6,5.53454537]
[1746581483639,0.30239008,1846.8,1846.6,5.53453025]
[1746581483969,2.26154485,1846.7,1846.6,5.53453025]
[1746581485197,0.30239008,1846.8,1846.7,5.41506471]
[1746581485345,0.30239008,1846.8,1846.7,5.53697279]
[1746581486270,0.30239008,1846.8,1846.7,0.12190808]
[1746581486585,0.70816804,1846.8,1846.5,5.41547051]
[1746581486763,2.26154485,1846.7,1846.6,0.12190808]
[1746581487271,11.21610956,1846.7,1846.6,0.12190808]
[1746581487667,11.21610956,1846.7,1846.4,5.626]
[1746581488193,5.80104485,1846.7,1846.5,0.12190808]
[1746581489676,11.21614715,1846.7,1846.5,0.12190808]
[1746581489878,0.30394453,1846.6,1846.5,5.53755931]
[1746581490487,0.30394453,1846.6,1846.5,6.32535931]
[1746581491009,0.30394453,1846.6,1846.5,0.90970808]
[1746581491692,0.30394453,1846.6,1846.5,6.32535931]
[1746581491903,0.30394453,1846.6,1846.5,0.90970808]
[1746581492102,0.30394453,1846.6,1846.5,6.32535931]
[1746581492589,0.30394453,1846.6,1846.5,6.37951196]
[1746581493652,0.30394453,1846.6,1846.5,6.32535931]
[1746581493852,0.30394453,1846.6,1846.5,0.12190808]
[1746581495685,6.25880248,1846.6,1846.5,0.12190808]
[1746581495889,6.25880248,1846.6,1846.3,5.626]
[1746581496089,6.25880248,1846.6,1846.5,0.12097475]
[1746581496290,6.25880248,1846.6,1846.2,0.7916]
[1746581496291,5.71969152,1846.5,1846.2,0.7916]
[1746581496499,2.26154485,1846.4,1846.1,11.04374547]
[1746581497064,2.26154485,1846.4,1846.1,11.04361911]
[1746581497310,2.26154485,1846.4,1846.1,11.04362886]
[1746581497686,0.30394453,1846.3,1846.1,11.04362886]
[1746581497863,0.70521758,1846.3,1846.1,11.04362886]
[1746581498606,0.30394453,1846.2,1846.1,11.04362886]
[1746581499468,2.56548938,1846.2,1846.1,5.627]
[1746581499680,2.56548938,1846.2,1846.1,11.04382465]
[1746581502316,0.30394453,1846.2,1846.1,11.83442465]
[1746581505622,0.30394453,1846.2,1846.1,11.96084255]
[1746581506222,0.30394453,1846.2,1846.1,12.51084255]
[1746581508705,2.66448815,1846.8,1846.5,5.41540944]
[1746581509008,2.66448815,1846.8,1846.6,5.54035696]
[1746581509194,3.47238704,1846.8,1846.6,5.54035696]
[1746581509726,0.30404393,1846.7,1846.6,0.12502368]
[1746581510726,0.30404393,1846.7,1846.6,5.54038163]
[1746581510931,0.30404393,1846.7,1846.6,0.12502368]
[1746581511150,0.84354393,1846.7,1846.4,11.03578139]
[1746581511337,2.26154485,1846.6,1846.5,0.12502368]
[1746581511543,2.56558878,1846.6,1846.5,0.12502368]
[1746581512648,2.56558878,1846.6,1846.5,5.54067491]
[1746581514333,2.56558878,1846.6,1846.5,0.12502368]
[1746581514535,2.56558878,1846.6,1846.5,5.54067491]
[1746581515131,2.56558878,1846.6,1846.5,0.12502368]
[1746581515329,2.56558878,1846.6,1846.5,5.54067491]
[1746581515956,0.30404393,1846.6,1846.5,5.54067491]
[1746581516124,0.30404393,1846.6,1846.5,6.33177491]
[1746581517824,0.30404393,1846.6,1846.5,6.88177491]
[1746581518158,0.30404393,1846.6,1846.5,6.93592695]
[1746581518532,0.30404393,1846.6,1846.5,6.33177491]
[1746581519165,0.30404393,1846.6,1846.5,6.38592225]
[1746581519871,0.30404393,1846.6,1846.5,5.59482225]
[1746581520176,2.56558878,1846.6,1846.5,6.30207491]
[1746581520660,0.30404393,1846.6,1846.5,6.30207491]
[1746581520832,0.30404393,1846.6,1846.5,6.35622546]
[1746581521759,0.30404393,1846.6,1846.5,6.90622546]
[1746581522126,0.30404393,1847.2,1847.1,5.41389204]
[1746581522361,0.30404393,1847.2,1847.1,16.77239768]
[1746581523028,0.30404393,1847.2,1847.1,18.11019768]
[1746581523527,6.21681526,1847.9,1847.6,5.41216131]
[1746581523528,2.26154485,1847.8,1847.6,5.41216131]
[1746581523748,5.26154485,1847.8,1847.7,0.11978046]
[1746581523979,2.26154485,1847.8,1847.7,5.53191446]
[1746581524154,2.26154485,1847.8,1847.7,0.11978046]
[1746581524696,2.26154485,1848.0,1847.7,0.11978046]
[1746581524875,2.26154485,1848.0,1847.9,5.41154824]
[1746581525181,2.26154485,1848.2,1848.0,5.41100409]
[1746581525685,0.30262754,1848.1,1848.0,5.41100409]
[1746581528187,5.82267785,1848.6,1848.5,5.40979172]
[1746581528374,5.82267785,1848.6,1848.5,16.64379172]
[1746581528878,9.1759748,1848.8,1848.5,16.64379172]
[1746581528879,2.26154485,1848.8,1848.5,16.64379172]
[1746581529187,0.40129307,1848.9,1848.6,5.46356269]
[1746581529354,2.26154485,1848.9,1848.7,5.4091555]
[1746581529551,5.26154485,1848.9,1848.6,5.46339701]
[1746581529759,0.80765819,1849.2,1848.9,5.40857292]
[1746581529960,0.80765819,1849.2,1848.9,11.02157292]
[1746581530262,4.1765176,1849.3,1849.0,5.40832179]
[1746581530783,4.1765176,1849.3,1849.0,5.46239872]
[1746581530990,5.94680425,1849.4,1849.0,0.05407693]
[1746581530991,0.41396933,1849.4,1849.0,0.05407693]
[1746581531199,3.0,1849.5,1849.1,5.40775523]
[1746581531498,3.0,1849.5,1849.1,5.40789126]
[1746581531707,8.40705099,1849.5,1849.1,5.40789126]
[1746581532792,8.40705099,1849.5,1849.1,5.46196381]
[1746581533402,8.40705099,1849.5,1849.1,5.40789126]
[1746581534808,8.819328,1849.5,1849.1,5.40780252]
[1746581535474,3.41242543,1849.5,1849.1,0.05407257]
[1746581535806,3.41242543,1849.5,1849.2,5.50894396]
[1746581535974,3.41242543,1849.5,1849.3,5.61]
[1746581536382,3.41242543,1849.5,1849.4,0.10121421]
[1746581536594,3.0,1849.5,1849.4,0.10121421]
[1746581536777,10.12260935,1849.6,1849.4,0.10121421]
[1746581537200,4.1765176,1849.6,1849.4,5.5622551]
[1746581537407,3.40757514,1849.7,1849.4,5.5622551]
[1746581537580,3.40757514,1849.7,1849.4,5.46104089]
[1746581537908,10.12223074,1849.8,1849.5,5.40683274]
[1746581537909,4.7160176,1849.8,1849.5,5.40683274]
[1746581538215,4.7160176,1849.8,1849.5,5.40684236]
[1746581538421,10.12155318,1850.0,1849.6,5.40646288]
[1746581538584,10.12155318,1850.0,1849.7,11.217]
[1746581538915,5.40570355,1849.9,1849.7,11.217]
[1746581541014,10.39729902,1850.0,1849.7,11.217]
[1746581541724,5.40580988,1849.9,1849.7,11.217]
[1746581546236,5.40598983,1849.8,1849.4,0.8244]
[1746581546433,9.58250743,1849.8,1849.4,0.8244]
[1746581546637,14.9887746,1849.8,1849.4,6.23132937]
[1746581546947,9.58250743,1849.8,1849.4,5.46099548]
[1746581547450,4.1765176,1849.8,1849.5,5.40675702]
[1746581547740,4.1765176,1849.8,1849.4,5.40702488]
[1746581547741,5.94591064,1849.7,1849.4,5.604]
[1746581547914,5.40710044,1849.5,1849.0,0.7761]
[1746581548116,5.40715907,1849.4,1849.1,16.61800356]
[1746581548331,5.40715907,1849.4,1849.1,11.21]
[1746581548539,5.40715907,1849.4,1849.2,5.606]
[1746581549335,4.1765176,1849.6,1849.2,5.606]
[1746581549744,4.1765176,1849.6,1849.3,5.4073014]
[1746581550439,4.1765176,1849.6,1849.3,5.40726565]
[1746581550841,9.58309685,1849.6,1849.3,5.40726565]
[1746581551346,8.27462648,1849.8,1849.4,0.8056]
[1746581551551,0.30080817,1849.7,1849.4,6.2125791]
[1746581551853,0.30080817,1849.7,1849.3,5.40726565]
[1746581552059,6.56483707,1849.7,1849.3,5.40726565]
[1746581552219,0.30080817,1849.6,1849.3,5.40726565]
[1746581552761,4.47732577,1849.6,1849.2,6.21332375]
[1746581552920,5.94649908,1849.5,1849.1,5.4079746]
[1746581553119,2.12255423,1849.5,1849.2,16.61670646]
[1746581553319,7.52949758,1849.5,1849.2,5.40771639]
[1746581553551,0.30080817,1849.4,1849.2,16.61671639]
[1746581554458,0.30080817,1849.4,1849.2,11.209]
[1746581555358,0.30080817,1849.3,1849.2,11.209]
[1746581555559,0.30080817,1849.3,1849.2,16.61674388]
[1746581555926,0.30080817,1849.3,1849.2,17.37794388]
[1746581560477,0.30080817,1849.3,1849.2,16.61574388]
[1746581562678,0.5395,1849.4,1849.1,5.40786502]
[1746581563005,4.1745481,1849.3,1849.2,5.606]
[1746581564475,12.58199956,1849.3,1849.2,5.606]
[1746581564677,14.43487776,1849.3,1849.2,5.606]
[1746581565105,5.94754512,1849.1,1848.9,25.11]
[1746581565513,10.12209322,1849.1,1848.9,25.11]
[1746581565914,4.7140481,1849.1,1848.9,25.11]
[1746581566808,5.11621311,1849.1,1848.9,25.11]
[1746581570712,10.52426401,1849.1,1848.9,19.504]
[1746581570915,6.70941821,1849.1,1848.7,11.203]
[1746581571082,12.58319927,1848.9,1848.7,11.203]
[1746581571783,12.58319927,1848.9,1848.5,5.4096122]
[1746581571784,12.58319927,1848.9,1848.6,5.602]
[1746581572196,7.1745481,1848.9,1848.6,11.01148253]
[1746581573317,7.1745481,1848.9,1848.6,11.01143979]
[1746581574220,3.0,1849.0,1848.7,6.21499652]
[1746581574707,0.30315154,1848.9,1848.7,6.21489528]
[1746581575089,3.30315154,1848.9,1848.6,11.01131829]
[1746581575296,5.40895126,1848.8,1848.6,5.602]
[1746581575617,6.2518868,1848.7,1848.4,11.203]
[1746581575805,6.2518868,1848.7,1848.3,5.41013988]
[1746581576007,6.2518868,1848.7,1848.4,11.01208167]
[1746581576614,11.66136921,1848.7,1848.4,5.602]
[1746581576814,5.7126674,1848.6,1848.4,5.602]
[1746581577124,5.40982517,1848.5,1848.3,5.603]
[1746581577490,0.30315154,1848.4,1848.3,5.603]
[1746581577811,2.56066188,1848.4,1848.3,5.603]
[1746581578418,8.51041393,1848.4,1848.1,30.699]
[1746581578921,2.25751034,1848.2,1848.1,30.699]
[1746581579424,2.56066188,1848.2,1848.1,30.699]
[1746581579723,2.56066188,1848.2,1848.1,36.10996261]
[1746581579724,0.30315154,1848.2,1848.1,36.10996261]
[1746581579925,0.30315154,1848.2,1848.1,24.90596261]
[1746581580094,0.30315154,1848.2,1848.1,30.50896261]
[1746581581187,0.30315154,1848.2,1848.1,25.098]
[1746581582516,2.56066188,1848.2,1848.1,19.495]
[1746581582730,7.97133172,1848.2,1847.7,6.2433644]
[1746581583025,7.66908083,1847.9,1847.6,5.41226144]
[1746581583191,2.25751034,1847.9,1847.7,11.0160389]
[1746581583386,2.25751034,1847.9,1847.8,5.4118411]
[1746581583602,0.30315154,1847.9,1847.8,5.4118411]
[1746581585429,2.56066188,1847.9,1847.7,11.01610124]
[1746581585596,0.5395,1847.8,1847.7,5.604]
[1746581585791,4.39067156,1847.8,1847.5,11.205]
[1746581586120,2.25751034,1847.7,1847.5,16.61758488]
[1746581586340,2.56066188,1847.7,1847.5,11.205]
[1746581586542,8.41246074,1847.6,1847.5,5.604]
[1746581587120,9.81292454,1847.6,1847.2,24.91445369]
[1746581587315,2.25751034,1847.5,1847.4,11.205]
[1746581587556,11.20974324,1847.5,1847.4,11.205]
[1746581587745,5.79701034,1847.5,1847.2,19.501]
[1746581587938,7.67081624,1847.3,1847.2,19.501]
[1746581588114,8.21031624,1847.3,1847.2,19.501]
[1746581588315,8.6195246,1847.3,1847.1,11.205]
[1746581588644,8.6195246,1847.3,1847.0,11.205]
[1746581589140,8.6195246,1847.3,1846.9,5.41437831]
[1746581589341,9.73923718,1847.3,1847.0,11.207]
[1746581589655,4.32593128,1847.3,1847.0,16.62114643]
[1746581589833,3.2062187,1847.3,1847.0,16.62114643]
[1746581590230,2.25751034,1847.1,1847.0,5.605]
[1746581590814,2.25751034,1847.1,1847.0,11.01918516]
[1746581592660,2.6667187,1847.3,1847.0,11.01918516]
[1746581592860,2.25751034,1847.3,1847.1,5.41368121]
[1746581593066,2.79701034,1847.5,1847.2,5.4133591]
[1746581593260,2.79701034,1847.5,1847.3,11.0162514]
[1746581593558,2.79701034,1847.5,1847.3,5.603]
[1746581594059,5.41151193,1848.0,1847.5,6.20695691]
[1746581594258,2.55886727,1847.9,1847.6,5.41230257]
[1746581594464,3.0,1847.8,1847.7,5.602]
[1746581595040,2.55886727,1847.9,1847.7,11.01413318]
[1746581595236,0.30135693,1847.9,1847.8,11.0188411]
[1746581595644,5.25751034,1848.1,1847.9,5.41154824]
[1746581595841,5.80891902,1848.3,1848.0,5.41112582]
[1746581595842,0.39840204,1848.3,1848.0,5.41112582]
[1746581596045,3.0,1848.3,1848.1,5.603]
[1746581596360,0.5395,1848.4,1848.1,5.603]
[1746581596560,9.5907149,1848.5,1848.2,5.603]
[1746581596742,3.0,1848.3,1848.2,5.603]
[1746581597065,9.59094603,1848.5,1848.2,5.603]
[1746581597241,4.57950564,1848.5,1848.2,5.603]
[1746581597438,0.30151983,1848.4,1848.2,5.603]
[1746581597756,3.30151983,1848.4,1848.2,5.603]
[1746581597959,0.30151983,1848.4,1848.3,5.4103771]
[1746581598270,0.39858468,1848.5,1848.3,5.4103771]
[1746581598447,3.5395,1848.6,1848.3,5.4103771]
[1746581599166,0.30160755,1848.5,1848.2,11.01348287]
[1746581599460,3.0,1848.4,1848.2,5.603]
[1746581600970,3.0,1848.4,1848.2,11.01366908]
[1746581601262,4.18092096,1848.7,1848.3,0.8184]
[1746581601466,4.18092096,1848.5,1848.1,0.8184]
[1746581601671,4.18092096,1848.3,1847.9,6.23539854]
[1746581601873,0.5395,1848.2,1847.8,5.41164243]
[1746581602059,9.59198019,1848.1,1847.9,11.203]
[1746581602265,9.89392728,1848.1,1847.8,11.203]
[1746581602465,4.48286805,1848.1,1847.8,11.203]
[1746581602664,4.48286805,1848.1,1847.8,16.61473598]
[1746581602868,0.30194709,1848.0,1847.8,16.61467817]
[1746581603057,0.30194709,1848.0,1847.8,16.61472983]
[1746581603848,0.30194709,1848.0,1847.8,11.203]
[1746581604044,5.7132326,1848.0,1847.8,11.203]
[1746581604245,5.41158297,1847.9,1847.8,11.203]
[1746581604453,3.30194709,1848.0,1847.8,11.203]
[1746581604944,5.71349533,1847.9,1847.8,11.203]
[1746581605184,7.48286805,1847.9,1847.8,11.203]
[1746581605382,7.48286805,1847.9,1847.7,5.602]
[1746581605883,0.5395,1847.8,1847.7,5.602]
[1746581606377,0.84144709,1847.8,1847.7,5.602]
[1746581606584,0.30194709,1847.8,1847.7,11.014134]
[1746581606785,0.30194709,1847.8,1847.7,11.812134]
[1746581609151,0.30194709,1847.8,1847.7,5.602]
[1746581610499,0.30194709,1847.8,1847.6,5.41222463]
[1746581610808,5.71378819,1847.8,1847.6,11.203]
[1746581611552,0.30194709,1847.8,1847.6,5.602]
[1746581611854,5.7137989,1847.8,1847.6,5.602]
[1746581612253,0.30194709,1847.7,1847.6,5.602]
[1746581612961,5.41258366,1847.6,1847.5,5.601]
[1746581613259,5.71453075,1847.6,1847.5,5.601]
[1746581613454,5.41273095,1847.5,1847.1,5.41380453]
[1746581613655,9.59365191,1847.5,1847.2,11.203]
[1746581613875,0.30194709,1847.4,1847.2,11.203]
[1746581614082,0.30194709,1847.4,1847.2,16.61659317]
[1746581614774,0.30194709,1847.4,1847.2,5.41359317]
[1746581614978,0.30194709,1847.4,1847.3,11.202]
[1746581615883,0.30194709,1847.4,1847.3,5.602]
[1746581620897,0.30194709,1847.4,1847.3,11.8784385]
[1746581621092,0.30194709,1847.4,1847.3,11.8243059]
[1746581621286,0.30194709,1847.7,1847.5,5.41254056]
[1746581622095,0.30194709,1847.6,1847.5,5.41252195]
[1746581622396,0.30194709,1847.6,1847.5,11.82152195]
[1746581622965,0.30194709,1847.6,1847.5,11.01252195]
[1746581623273,0.30194709,1847.6,1847.3,5.41314792]
[1746581623601,0.30194709,1847.6,1847.4,16.61588437]
[1746581623917,0.30194709,1847.6,1847.4,5.41288437]
[1746581624224,0.5395,1847.7,1847.5,11.203]
[1746581624594,0.5395,1847.7,1847.5,5.603]
[1746581625314,0.30315592,1847.6,1847.5,11.01568093]
[1746581626219,0.30315592,1847.6,1847.5,5.603]
[1746581626821,0.30315592,1847.6,1847.4,11.2]
[1746581626991,0.30315592,1847.6,1847.3,5.41320984]
[1746581627195,5.71560261,1847.6,1847.3,11.01320984]
[1746581627510,0.30315592,1847.5,1847.3,16.61320984]
[1746581627700,0.30315592,1847.5,1847.3,16.61315612]
[1746581628018,0.30315592,1847.5,1847.3,16.61316711]
[1746581628526,0.30315592,1847.4,1847.3,16.61316711]
[1746581629423,0.30315592,1847.4,1847.3,11.2]
[1746581629922,0.30315592,1847.4,1847.3,16.6133059]
[1746581630792,0.30315592,1847.4,1847.3,11.0133059]
[1746581630994,0.30315592,1847.4,1847.3,16.6123059]
[1746581631190,0.30315592,1847.4,1847.3,17.4142059]
[1746581632208,0.30315592,1847.4,1847.3,16.6123059]
[1746581632432,0.30315592,1847.4,1847.3,11.199]
[1746581632731,0.30315592,1847.4,1847.3,16.6123059]
[1746581632931,0.30315592,1847.4,1847.3,17.4142059]
[1746581633301,0.30315592,1847.4,1847.3,17.3142059]
[1746581633921,0.40857279,1847.9,1847.7,5.41199667]
[1746581634124,3.5395,1848.0,1847.8,11.199]
[1746581634733,3.94374199,1848.0,1847.8,11.199]
[1746581635040,0.30398509,1847.9,1847.8,11.199]
[1746581635211,0.30398509,1847.9,1847.8,5.6]
[1746581635411,13.321227,1847.9,1847.8,5.6]
[1746581636017,7.90967876,1847.9,1847.8,5.6]
[1746581637645,3.30398509,1847.9,1847.8,5.6]
[1746581638240,7.48490605,1847.9,1847.8,5.6]
[1746581638744,12.89645429,1847.9,1847.8,5.6]
[1746581639615,7.48490605,1847.9,1847.8,5.6]
[1746581639810,0.5395,1847.8,1847.4,5.41277401]
[1746581640015,0.30398509,1847.7,1847.5,11.198]
[1746581640523,0.30398509,1847.7,1847.5,16.61051773]
[1746581640941,0.30398509,1847.6,1847.5,16.61051773]
[1746581641438,0.30398509,1847.6,1847.5,11.01251773]
[1746581641641,0.30398509,1847.6,1847.5,16.61051773]
[1746581646156,0.30398509,1847.6,1847.5,11.01251773]
[1746581646373,0.30398509,1847.6,1847.4,5.41286419]
[1746581646533,0.30398509,1847.6,1847.5,5.6]
[1746581646934,0.30398509,1847.6,1847.4,16.60986419]
[1746581647265,0.30398509,1847.5,1847.4,5.6]
[1746581647425,0.30398509,1847.5,1847.4,11.197]
[1746581648746,0.30398509,1847.5,1847.4,17.40961288]
[1746581650659,0.30398509,1847.5,1847.3,5.41312612]
[1746581650862,0.30398509,1847.5,1847.4,5.6]
[1746581651162,0.30398509,1847.5,1847.3,5.41312612]
[1746581651324,0.30398509,1847.5,1847.3,16.61012612]
[1746581651533,0.30398509,1847.5,1847.3,11.197]
[1746581651769,0.30398509,1847.4,1847.3,11.197]
[1746581651972,0.30398509,1847.4,1847.3,16.6103059]
[1746581654164,0.30398509,1847.4,1847.3,5.4133059]
[1746581654367,0.30398509,1847.4,1847.3,16.6093059]
[1746581656353,0.30398509,1847.4,1847.3,17.4327059]
[1746581657194,0.30398509,1847.4,1846.7,5.0]
[1746581657195,4.48770649,1847.4,1846.7,5.0]
[1746581657332,0.5395,1847.3,1847.0,5.41406951]
[1746581657689,0.50272065,1847.3,1847.1,5.41366566]
[1746581657882,0.30398509,1847.4,1847.2,6.19249896]
[1746581658172,0.40938358,1847.5,1847.3,5.596]
[1746581658373,8.41248735,1847.6,1847.3,5.596]
[1746581658676,3.0,1847.6,1847.3,11.00929805]
[1746581658874,0.30421106,1847.5,1847.4,5.41299866]
[1746581659191,0.70782237,1847.5,1847.4,5.46712605]
[1746581659338,0.30421106,1847.5,1847.4,5.46712605]
[1746581659677,0.30421106,1847.5,1847.4,5.41299866]
[1746581660176,0.30421106,1847.5,1847.4,5.46712144]
[1746581660337,0.30421106,1847.5,1847.4,5.41299866]
[1746581661574,0.30421106,1847.5,1847.3,11.00929805]
[1746581661873,0.30421106,1847.5,1847.4,5.595]
[1746581666460,0.30421106,1847.5,1847.4,11.00801288]
[1746581668152,0.30421106,1847.5,1847.4,11.06213561]
[1746581669372,0.30421106,1847.5,1847.4,11.00801288]
[1746581669565,0.30421106,1847.5,1847.4,11.06213562]
[1746581669767,0.30421106,1847.5,1847.4,11.83413562]
[1746581669962,0.30421106,1847.5,1847.4,11.78001288]
[1746581671367,0.5395,1848.3,1848.0,5.41115602]
[1746581671548,5.94988964,1848.3,1848.0,11.19]
[1746581671748,7.38590331,1848.3,1848.0,11.19]
[1746581671949,11.56962471,1848.3,1848.0,11.19]
[1746581673345,10.13361104,1848.3,1848.0,11.19]
[1746581673547,5.41089069,1848.2,1848.1,5.595]
[1746581673748,5.81225688,1848.2,1848.1,5.595]
[1746581675453,0.40136619,1848.2,1848.1,5.595]
[1746581675654,15.54440817,1848.3,1848.1,5.595]
[1746581675982,4.7232214,1848.3,1848.1,5.595]
[1746581676883,10.13369696,1848.3,1848.1,5.595]
[1746581677676,4.7232214,1848.3,1848.1,5.595]
[1746581677979,10.13361415,1848.3,1848.1,5.595]
[1746581678168,10.53557981,1848.3,1848.1,5.595]
[1746581678364,5.12518706,1848.3,1848.1,5.595]
[1746581679243,4.1837214,1848.5,1848.2,5.41052753]
[1746581679693,4.1837214,1848.5,1848.3,5.41035389]
[1746581679900,2.25734497,1848.5,1848.3,5.46429946]
[1746581680194,2.25734497,1848.5,1848.2,5.41044232]
[1746581680346,2.25734497,1848.5,1848.2,10.82090332]
[1746581680543,2.25734497,1848.5,1848.2,5.41044232]
[1746581680777,2.25734497,1848.3,1848.2,5.41044232]
[1746581681384,2.25734497,1848.3,1848.1,11.00577928]
[1746581681675,2.25734497,1848.3,1848.2,5.41066984]
[1746581681880,9.99883603,1848.5,1848.2,5.41066984]
[1746581682550,4.58901984,1848.5,1848.2,5.41066984]
[1746581684356,5.41018603,1848.4,1848.1,5.595]
[1746581684562,0.5395,1848.3,1848.2,5.591]
[1746581684757,10.13004479,1848.3,1847.8,6.8103]
[1746581684963,4.17998362,1848.1,1847.9,5.594]
[1746581685161,4.17998362,1848.1,1847.9,11.185]
[1746581687284,9.59097946,1848.1,1847.9,11.185]
[1746581687491,4.17998362,1848.1,1847.9,11.185]
[1746581687987,9.59103206,1848.1,1847.9,11.185]
[1746581688178,4.17998362,1848.1,1847.9,11.185]
[1746581689488,5.41169599,1847.9,1847.6,0.7885]
[1746581689665,9.59167961,1847.9,1847.6,5.591]
[1746581689865,3.0,1847.9,1847.7,5.41202478]
[1746581690070,3.0,1848.0,1847.7,11.58258836]
[1746581690371,3.0,1848.0,1847.7,6.17056358]
[1746581690772,3.41390153,1848.0,1847.7,6.17056358]
[1746581691794,3.41390153,1848.0,1847.7,6.22468104]
[1746581692369,0.41390153,1848.0,1847.8,5.41164627]
[1746581692695,3.0,1848.2,1847.9,5.41135869]
[1746581692996,3.0,1848.2,1848.0,5.4111058]
[1746581693175,3.0,1848.2,1848.0,6.1689058]
[1746581694094,4.71948362,1848.4,1848.0,6.3488]
[1746581694294,0.40903622,1848.5,1848.3,5.4102121]
[1746581694501,3.5395,1848.6,1848.3,5.4102121]
[1746581694799,3.5395,1848.6,1848.2,5.410645]
[1746581694800,8.94900985,1848.6,1848.2,5.410645]
[1746581694999,8.94900985,1848.6,1848.2,10.82109968]
[1746581695303,8.94900985,1848.6,1848.2,10.8209622]
[1746581695497,8.94900985,1848.6,1848.2,10.82092899]
[1746581695679,3.5395,1848.6,1848.3,5.41024341]
[1746581697396,8.94907392,1848.6,1848.2,10.82099937]
[1746581697695,9.34662382,1848.6,1848.2,10.8209721]
[1746581698298,5.40981364,1848.5,1848.2,5.41047832]
[1746581698481,4.17998362,1848.5,1848.2,5.41047832]
[1746581698991,4.17998362,1848.5,1848.1,5.41081055]
[1746581699303,4.17998362,1848.5,1848.3,5.4102947]
[1746581699491,4.17998362,1848.5,1848.3,10.82052308]
[1746581699687,4.17998362,1848.5,1848.3,11.62721596]
[1746581699900,0.3975499,1848.6,1848.5,5.40979172]
[1746581700104,3.5395,1848.8,1848.5,5.40979172]
[1746581700901,3.5395,1848.8,1848.4,11.0009352]
[1746581700902,9.58927727,1848.7,1848.4,5.591]
[1746581701602,4.17998362,1848.5,1848.4,5.591]
[1746581701807,3.938571,1848.8,1848.4,5.591]
[1746581702020,2.25744671,1848.7,1848.6,5.40925626]
[1746581702491,3.0,1848.9,1848.6,5.40925626]
[1746581702676,2.25744671,1848.7,1848.6,5.40925626]
[1746581704418,2.25744671,1849.0,1848.8,5.40865965]
[1746581704603,0.5395,1848.7,1847.9,5.59]
[1746581704917,2.25744671,1848.3,1848.1,5.41067547]
[1746581705076,2.25744671,1848.3,1848.1,6.20757547]
[1746581705478,2.25744671,1848.3,1848.1,6.26167899]
[1746581705725,0.39744595,1848.4,1848.3,5.4103771]
[1746581705895,3.0,1848.6,1848.3,5.59]
[1746581706073,4.17956822,1848.7,1848.4,6.29714234]
[1746581706278,4.17956822,1848.7,1848.4,11.83304823]
[1746581706571,4.17956822,1848.7,1848.5,5.40976406]
[1746581706778,0.303477,1848.6,1848.4,11.83310619]
[1746581707073,0.303477,1848.6,1848.4,17.24301391]
[1746581707309,0.303477,1848.6,1848.4,11.83310619]
[1746581707610,0.303477,1848.5,1848.4,11.83308717]
[1746581714910,0.39875896,1848.8,1848.6,5.40921512]
[1746581715110,3.0,1848.9,1848.6,10.81845531]
[1746581715524,0.30311553,1848.8,1848.6,10.81853493]
[1746581715886,0.30311553,1848.8,1848.7,6.26499527]
[1746581716293,0.30311553,1848.8,1848.7,5.587]
[1746581716817,0.30311553,1848.8,1848.7,10.99620646]
[1746581730944,2.55945592,1848.8,1848.7,10.99620646]
[1746581731843,2.55945592,1848.8,1848.7,11.60429648]
[1746581732944,2.55945592,1848.8,1848.7,17.19129648]
[1746581734057,0.30311553,1848.8,1848.7,18.00589648]
[1746581734611,0.41204237,1848.9,1848.7,18.00589648]
[1746581734817,2.25634039,1849.0,1848.9,5.40862134]
[1746581735019,2.25634039,1849.0,1848.9,6.02006989]
[1746581735214,2.25634039,1849.0,1848.9,0.61144855]
[1746581735546,5.66384577,1849.0,1848.9,0.61144855]
[1746581735927,5.96795778,1849.0,1848.7,16.5830973]
[1746581736244,3.71161739,1849.0,1848.8,0.61119233]
[1746581736916,0.30411201,1848.9,1848.8,0.61119233]
[1746581737458,2.5604524,1848.9,1848.8,0.61119233]
[1746581745229,5.5604524,1848.9,1848.8,0.61119233]
[1746581747763,5.5604524,1848.9,1848.7,5.40913999]
[1746581747931,5.5604524,1848.9,1848.8,0.61158958]
[1746581748667,5.5604524,1848.9,1848.6,16.58131954]
[1746581748828,5.5604524,1848.9,1848.7,0.61159818]
[1746581749033,8.94841389,1848.8,1848.7,0.61159818]
[1746581749266,5.94942831,1848.5,1848.2,5.584]
[1746581749435,2.25634039,1848.3,1848.2,5.584]
[1746581749865,2.25634039,1848.3,1848.0,20.2683]
[1746581750068,8.41125541,1848.0,1847.9,3.60030739]
[1746581750238,3.0,1848.0,1847.9,3.60030739]
[1746581750577,8.71536742,1848.0,1847.9,3.60030739]
[1746581750865,9.12146002,1848.0,1847.9,3.60030739]
[1746581751958,3.71020461,1848.0,1847.9,3.60030739]
[1746581753169,0.30411201,1848.0,1847.9,9.01185563]
[1746581753338,0.30411201,1848.0,1847.9,9.83135563]
[1746581754664,0.30411201,1848.0,1847.9,6.23104824]
[1746581754964,0.30411201,1848.0,1847.9,0.8195]
[1746581756335,0.30411201,1848.0,1847.8,5.584]
[1746581756658,0.30411201,1847.9,1847.8,11.169]
[1746581760380,0.30411201,1847.9,1847.8,16.5808411]
[1746581760562,0.30411201,1847.9,1847.8,11.68639199]
[1746581760935,2.5604524,1847.9,1847.8,6.10139199]
[1746581761335,9.12313237,1847.9,1847.8,0.51739199]
[1746581761592,3.71158413,1847.9,1847.8,0.51739199]
[1746581761771,2.5604524,1847.9,1847.6,5.41239349]
[1746581762071,2.5604524,1847.9,1847.7,5.89276652]
[1746581762642,0.30411201,1847.8,1847.7,5.89276652]
[1746581763438,0.30411201,1847.8,1847.7,0.48075888]
[1746581764862,3.30411201,1847.8,1847.7,0.48075888]
[1746581765067,5.41214986,1847.7,1847.5,5.586]
[1746581765376,2.25634039,1847.6,1847.5,5.586]
[1746581765546,2.65912177,1847.6,1847.5,5.586]
[1746581765746,3.0,1847.7,1847.5,10.99851121]
[1746581765947,0.30411201,1847.6,1847.5,10.99851121]
[1746581766981,0.30411201,1847.6,1847.5,11.79681121]
[1746581767857,2.25634039,1847.8,1847.6,5.41228873]